fUST/lending_fUST_20250610
["ID","MTS","AMOUNT","RATE_DAILY","PERIOD"]
[365145965,1749492645248,-452.57,0.00021917,4]
[365145966,1749492645257,-151.0,0.00021917,2]
[365145967,1749492645267,-151.0,0.00021917,2]
[365145968,1749492645277,-151.0,0.00021917,2]
[365145969,1749492645286,-151.0,0.00021917,2]
[365145970,1749492645295,-332.95941968,0.00021917,4]
[365145971,1749492645306,-380.0,0.00021917,4]
[365145972,1749492645317,-380.0,0.00021917,4]
[365145973,1749492645326,-509.38328801,0.00021917,4]
[365145974,1749492645336,-460.0,0.00021917,4]
[365145975,1749492645346,-380.0,0.00021917,4]
[365145976,1749492645356,-460.0,0.00021917,4]
[365145977,1749492645366,-460.0,0.00021917,4]
[365145978,1749492645375,-853.52,0.00021917,4]
[365145979,1749492645387,-460.0,0.00021917,4]
[365145980,1749492645397,-460.0,0.00021917,4]
[365145981,1749492645407,-460.0,0.00021917,4]
[365145982,1749492645416,-1247.26,0.00021917,4]
[365145983,1749492645426,-460.0,0.00021917,4]
[365145984,1749492645435,-1636.16,0.00021917,4]
[365145985,1749492645446,-484.48,0.00021917,4]
[365145986,1749492645455,-380.0,0.00021917,4]
[365145987,1749492645465,-330.0,0.00021917,4]
[365145989,1749492645476,-617.94,0.00021917,4]
[365145991,1749492645486,-904.06,0.00021917,4]
[365145993,1749492645496,-460.0,0.00021917,4]
[365145994,1749492645506,-460.0,0.00021917,4]
[365145996,1749492645516,-884.66,0.00021917,4]
[365145998,1749492645527,-460.0,0.00021917,4]
[365145999,1749492645537,-552.55,0.00021917,4]
[365146000,1749492645547,-380.0,0.00021917,4]
[365146001,1749492645557,-460.0,0.00021917,4]
[365146002,1749492645566,-958.781855,0.00021917,2]
[365146003,1749492645576,-958.781855,0.00021917,2]
[365146004,1749492645586,-958.781855,0.00021917,2]
[365146005,1749492645595,-958.781855,0.00021917,2]
[365146006,1749492645605,-460.0,0.00021917,4]
[365146007,1749492645615,-892.09,0.00021917,4]
[365146008,1749492645625,-736.81,0.00021917,4]
[365146009,1749492645634,-460.0,0.00021917,4]
[365146010,1749492645644,-460.0,0.00021917,4]
[365146011,1749492645655,-1110.6,0.00021917,4]
[365146012,1749492645666,-460.0,0.00021917,4]
[365146014,1749492645676,-460.0,0.00021917,4]
[365146015,1749492645686,-460.0,0.00021917,4]
[365146017,1749492645695,-460.0,0.00021917,4]
[365146019,1749492645705,-1359.1,0.00021917,4]
[365146021,1749492645715,-460.0,0.00021917,4]
[365146022,1749492645725,-460.0,0.00021917,4]
[365146023,1749492645735,-709.82,0.00021917,4]
[365146024,1749492645745,-460.0,0.00021917,4]
[365146025,1749492645755,-213.23622115,0.00021917,4]
[365146026,1749492645768,-460.0,0.00021917,4]
[365146027,1749492645785,-460.0,0.00021917,4]
[365146028,1749492645794,-460.0,0.00021917,4]
[365146029,1749492645804,-460.0,0.00021917,4]
[365146030,1749492645815,-2201.86,0.00021917,4]
[365146031,1749492645824,-380.0,0.00021917,4]
[365146032,1749492645834,-1774.99,0.00021917,4]
[365146033,1749492645844,-889.978856,0.00021917,2]
[365146034,1749492645854,-889.978856,0.00021917,2]
[365146035,1749492645863,-460.0,0.00021917,4]
[365146036,1749492645876,-2126.84,0.00021917,4]
[365146037,1749492645886,-380.0,0.00021917,4]
[365146038,1749492645895,-889.978856,0.00021917,2]
[365146039,1749492645905,-889.978862,0.00021917,2]
[365146040,1749492645915,-479.45,0.00021917,4]
[365146041,1749492645925,-187.45,0.00021917,4]
[365146042,1749492645935,-650.38,0.00021917,4]
[365146043,1749492645945,-500.0,0.00021917,4]
[365146044,1749492645956,-500.0,0.00021917,4]
[365146045,1749492645966,-460.0,0.00021917,4]
[365146046,1749492645975,-527.64,0.00021917,4]
[365146048,1749492645985,-16120.96,0.00021917,4]
[365146050,1749492645995,-794.98,0.00021917,4]
[365146051,1749492646005,-890.98,0.00021917,4]
[365146052,1749492646015,-2274.69,0.00021917,4]
[365146053,1749492646025,-460.0,0.00021917,4]
[365146054,1749492646035,-151.0,0.00021918,2]
[365146055,1749492646045,-151.0,0.00021918,2]
[365146056,1749492646055,-151.0,0.00021918,2]
[365146057,1749492646065,-151.0,0.00021918,2]
[365146058,1749492646075,-151.0,0.00021918,2]
[365146059,1749492646085,-151.0,0.00021918,2]
[365146060,1749492646094,-151.0,0.00021918,2]
[365146062,1749492646103,-151.0,0.00021918,2]
[365146064,1749492646114,-151.0,0.00021918,2]
[365146066,1749492646124,-151.0,0.00021918,2]
[365146068,1749492646134,-151.0,0.00021918,2]
[365146070,1749492646144,-151.0,0.00021918,2]
[365146072,1749492646154,-151.0,0.00021918,2]
[365146073,1749492646163,-151.0,0.00021918,2]
[365146075,1749492646173,-151.0,0.00021918,2]
[365146077,1749492646182,-237.2136732,0.00021918,2]
[365146079,1749492646195,-151.0,0.00021918,7]
[365146080,1749492646204,-151.0,0.00021918,7]
[365146081,1749492646215,-156.025299,0.00021918,7]
[365146082,1749492646225,-151.0,0.00021918,7]
[365146083,1749492646235,-151.0,0.00021918,7]
[365146084,1749492646244,-164.048018,0.00021918,7]
[365146085,1749492646254,-164.048018,0.00021918,7]
[365146086,1749492646263,-228.910818,0.00021918,7]
[365146087,1749492646273,-228.910818,0.00021918,7]
[365146088,1749492646282,-323.26948215,0.00021921,2]
[365146089,1749492646292,-223.0841602,0.00021954,2]
[365146090,1749492646301,-1200.0,0.00021959,2]
[365146091,1749492646311,-679.79310341,0.00021969,6]
[365146092,1749492646321,-500.0,0.00021973,2]
[365146093,1749492646331,-500.0,0.00021973,2]
[365146094,1749492646341,-151.0,0.00021987,7]
[365146095,1749492646350,-151.0,0.00021987,7]
[365146096,1749492646360,-158.03261,0.00021987,7]
[365146097,1749492646369,-158.03261,0.00021987,7]
[365146099,1749492646379,-2096.69,0.00022,7]
[365146101,1749492646389,-151.0,0.00022,7]
[365146103,1749492646398,-151.0,0.00022,7]
[365146105,1749492646408,-151.0,0.00022,7]
[365146106,1749492646417,-151.0,0.00022,7]
[365146107,1749492646427,-227.075739,0.00022,7]
[365146108,1749492646438,-227.075739,0.00022,7]
[365146109,1749492646448,-151.0,0.00022,7]
[365146110,1749492646459,-151.0,0.00022,7]
[365146111,1749492646468,-151.0,0.00022,7]
[365146112,1749492646478,-151.0,0.00022,7]
[365146113,1749492646488,-158.774002,0.00022,7]
[365146114,1749492646497,-151.0,0.00022,7]
[365146115,1749492646511,-151.0,0.00022,7]
[365146116,1749492646521,-151.0,0.00022,7]
[365146117,1749492646533,-154.470227,0.00022,7]
[365146118,1749492646542,-151.0,0.00022,7]
[365146119,1749492646554,-151.0,0.00022,7]
[365146120,1749492646564,-151.0,0.00022,7]
[365146121,1749492646574,-151.0,0.00022,7]
[365146122,1749492646583,-179.463166,0.00022,7]
[365146123,1749492646593,-179.463166,0.00022,7]
[365146124,1749492646602,-179.463166,0.00022,7]
[365146125,1749492646616,-179.463166,0.00022,7]
[365146126,1749492646627,-156.025299,0.00022,7]
[365146127,1749492646637,-151.0,0.00022,7]
[365146128,1749492646646,-151.0,0.00022,7]
[365146129,1749492646656,-164.048018,0.00022,7]
[365146130,1749492646666,-164.048018,0.00022,7]
[365146131,1749492646676,-158.03261,0.00022,7]
[365146132,1749492646687,-158.03261,0.00022,7]
[365146133,1749492646697,-228.910818,0.00022,7]
[365146134,1749492646706,-228.910818,0.00022,7]
[365146135,1749492646716,-151.0,0.00022,7]
[365146136,1749492646726,-151.0,0.00022,7]
[365146137,1749492646735,-151.0,0.00022,7]
[365146138,1749492646745,-221.9797,0.00022,7]
[365146139,1749492646755,-151.0,0.00022,7]
[365146140,1749492646764,-151.0,0.00022,7]
[365146141,1749492646774,-171.0,0.00022,2]
[365146142,1749492646784,-958.781855,0.00022,2]
[365146143,1749492646793,-958.781853,0.00022,2]
[365146144,1749492646803,-213.08899333,0.00022,7]
[365146145,1749492646812,-161.0,0.00022,2]
[365146146,1749492646822,-151.0,0.00022004,7]
[365146147,1749492646833,-151.0,0.00022024,7]
[365146148,1749492646843,-151.0,0.00022024,7]
[365146149,1749492646853,-151.0,0.00022028,7]
[365146150,1749492646863,-151.0,0.00022028,7]
[365146151,1749492646875,-227.075739,0.00022028,7]
[365146152,1749492646889,-227.075739,0.00022028,7]
[365146153,1749492646900,-227.075739,0.00022028,7]
[365146154,1749492646910,-227.075739,0.00022028,7]
[365146155,1749492646921,-151.0,0.00022028,7]
[365146156,1749492646930,-151.0,0.00022028,7]
[365146157,1749492646940,-158.03261,0.00022028,7]
[365146158,1749492646952,-158.03261,0.00022028,7]
[365146159,1749492646964,-16000.0,0.00022035,2]
[365146160,1749492646974,-679.79310341,0.00022141,6]
[365146161,1749492646984,-151.0,0.00022151,7]
[365146162,1749492646995,-151.0,0.00022151,7]
[365146163,1749492647005,-151.0,0.0002219,7]
[365146164,1749492647015,-179.463166,0.0002219,7]
[365146165,1749492647111,-179.463166,0.0002219,7]
[365146166,1749492647123,-276.281799,0.00022191,7]
[365146167,1749492647135,-151.0,0.00022191,7]
[365146168,1749492647147,-290.295929,0.00022191,7]
[365146169,1749492647163,-227.075739,0.00022191,7]
[365146170,1749492647172,-227.075739,0.00022191,7]
[365146171,1749492647184,-151.0,0.00022191,7]
[365146172,1749492647195,-151.0,0.00022191,7]
[365146173,1749492647207,-151.0,0.00022191,7]
[365146174,1749492647217,-151.0,0.00022191,7]
[365146175,1749492647229,-151.0,0.00022191,7]
[365146176,1749492647239,-151.0,0.00022191,7]
[365146177,1749492647249,-179.463166,0.00022191,7]
[365146178,1749492647258,-179.463166,0.00022191,7]
[365146179,1749492647269,-156.025299,0.00022191,7]
[365146180,1749492647279,-278.588098,0.00022191,7]
[365146181,1749492647289,-151.0,0.00022191,7]
[365146182,1749492647299,-151.0,0.00022191,7]
[365146183,1749492647309,-481.96,0.00022191,4]
[365146184,1749492647319,-164.048018,0.00022191,7]
[365146185,1749492647329,-164.048018,0.00022191,7]
[365146186,1749492647339,-158.03261,0.00022191,7]
[365146187,1749492647349,-158.03261,0.00022191,7]
[365146188,1749492647358,-460.0,0.00022191,4]
[365146189,1749492647368,-460.0,0.00022191,4]
[365146190,1749492647377,-1560.568451,0.00022191,2]
[365146191,1749492647388,-228.910818,0.00022191,7]
[365146192,1749492647397,-228.910818,0.00022191,7]
[365146193,1749492647408,-460.0,0.00022191,2]
[365146194,1749492647418,-151.0,0.00022191,7]
[365146195,1749492647427,-460.0,0.00022191,4]
[365146196,1749492647438,-151.0,0.00022191,7]
[365146197,1749492647450,-151.0,0.00022191,7]
[365146198,1749492647460,-460.0,0.00022191,4]
[365146199,1749492647470,-495.04312294,0.00022191,4]
[365146200,1749492647479,-460.0,0.00022191,4]
[365146201,1749492647490,-853.52,0.00022191,4]
[365146202,1749492647499,-460.0,0.00022191,4]
[365146203,1749492647509,-341.78,0.00022191,4]
[365146204,1749492647518,-460.0,0.00022191,4]
[365146205,1749492647527,-1247.26,0.00022191,4]
[365146206,1749492647536,-460.0,0.00022191,4]
[365146207,1749492647546,-1636.16,0.00022191,4]
[365146208,1749492647555,-484.48,0.00022191,4]
[365146209,1749492647565,-904.06,0.00022191,4]
[365146210,1749492647575,-617.94,0.00022191,4]
[365146211,1749492647584,-233.29837282,0.00022191,4]
[365146212,1749492647593,-460.0,0.00022191,4]
[365146213,1749492647604,-884.66,0.00022191,4]
[365146214,1749492647614,-460.0,0.00022191,4]
[365146215,1749492647624,-552.55,0.00022191,4]
[365146216,1749492647636,-460.0,0.00022191,4]
[365146217,1749492647645,-460.0,0.00022191,4]
[365146218,1749492647656,-892.09,0.00022191,4]
[365146219,1749492647666,-736.81,0.00022191,4]
[365146220,1749492647675,-460.0,0.00022191,4]
[365146221,1749492647684,-460.0,0.00022191,4]
[365146222,1749492647693,-1110.6,0.00022191,4]
[365146223,1749492647703,-460.0,0.00022191,4]
[365146224,1749492647713,-460.0,0.00022191,4]
[365146225,1749492647722,-460.0,0.00022191,4]
[365146226,1749492647730,-460.0,0.00022191,4]
[365146227,1749492647738,-1359.1,0.00022191,4]
[365146228,1749492647751,-460.0,0.00022191,4]
[365146229,1749492647761,-464.03042737,0.00022191,4]
[365146230,1749492647770,-709.82,0.00022191,4]
[365146231,1749492647779,-376.45155596,0.00022191,4]
[365146232,1749492647788,-460.0,0.00022191,4]
[365146233,1749492647797,-460.0,0.00022191,4]
[365146234,1749492647807,-460.0,0.00022191,4]
[365146235,1749492647816,-460.0,0.00022191,4]
[365146236,1749492647825,-2201.86,0.00022191,4]
[365146237,1749492647835,-1774.99,0.00022191,4]
[365146238,1749492647844,-460.0,0.00022191,4]
[365146239,1749492647853,-2126.84,0.00022191,4]
[365146240,1749492647862,-479.45,0.00022191,4]
[365146241,1749492647872,-650.38,0.00022191,4]
[365146242,1749492647886,-460.0,0.00022191,4]
[365146243,1749492647896,-527.64,0.00022191,4]
[365146244,1749492647904,-16120.96,0.00022191,4]
[365146245,1749492647914,-794.98,0.00022191,4]
[365146246,1749492647926,-890.98,0.00022191,4]
[365146247,1749492647936,-2274.69,0.00022191,4]
[365146248,1749492647946,-460.0,0.00022191,4]
[365146249,1749492647959,-886.0,0.000222,2]
[365146250,1749492647969,-281.31911977,0.000222,69]
[365146251,1749492647979,-420.0,0.00022222,2]
[365146252,1749492647988,-300.0,0.00022222,2]
[365146253,1749492647998,-308.0,0.00022222,2]
[365146254,1749492648007,-300.0,0.00022222,2]
[365146255,1749492648017,-659.82429951,0.00022241,2]
[365146256,1749492648025,-881.19,0.000223,7]
[365146257,1749492648035,-679.79310341,0.00022314,7]
[365146258,1749492648044,-500.0,0.00022378,2]
[365146259,1749492648053,-223.0841602,0.00022434,2]
[365146260,1749492648063,-151.0,0.00022458,7]
[365146261,1749492648073,-227.075739,0.00022464,7]
[365146262,1749492648083,-227.075739,0.00022464,7]
[365146263,1749492648093,-158.03261,0.00022464,7]
[365146264,1749492648103,-158.03261,0.00022464,7]
[365146265,1749492648113,-227.075739,0.00022465,7]
[365146266,1749492648122,-227.075743,0.00022465,7]
[365146267,1749492648132,-151.0,0.00022465,7]
[365146268,1749492648141,-151.0,0.00022465,7]
[365146269,1749492648151,-157.791356,0.00022465,7]
[365146270,1749492648160,-179.463166,0.00022465,7]
[365146271,1749492648170,-179.463166,0.00022465,7]
[365146272,1749492648179,-156.025299,0.00022465,7]
[365146273,1749492648188,-481.96,0.00022465,4]
[365146274,1749492648198,-164.048018,0.00022465,7]
[365146275,1749492648207,-164.048018,0.00022465,7]
[365146276,1749492648218,-158.03261,0.00022465,7]
[365146277,1749492648228,-158.032604,0.00022465,7]
[365146278,1749492648238,-460.0,0.00022465,4]
[365146279,1749492648247,-460.0,0.00022465,4]
[365146280,1749492648256,-228.910818,0.00022465,7]
[365146281,1749492648266,-228.910818,0.00022465,7]
[365146282,1749492648276,-460.0,0.00022465,2]
[365146283,1749492648286,-400.0,0.00022465,2]
[365146284,1749492648295,-400.0,0.00022465,2]
[365146285,1749492648306,-221.23862199,0.00022465,2]
[365146286,1749492648315,-460.0,0.00022465,4]
[365146287,1749492648325,-151.0,0.00022465,7]
[365146288,1749492648335,-155.250354,0.00022465,7]
[365146289,1749492648344,-460.0,0.00022465,4]
[365146290,1749492648355,-460.0,0.00022465,4]
[365146291,1749492648365,-853.52,0.00022465,4]
[365146292,1749492648375,-460.0,0.00022465,4]
[365146293,1749492648384,-460.0,0.00022465,4]
[365146294,1749492648395,-1247.26,0.00022465,4]
[365146295,1749492648404,-460.0,0.00022465,4]
[365146296,1749492648414,-1636.16,0.00022465,4]
[365146297,1749492648424,-484.48,0.00022465,4]
[365146298,1749492648433,-904.06,0.00022465,4]
[365146299,1749492648443,-617.94,0.00022465,4]
[365146300,1749492648453,-460.0,0.00022465,4]
[365146301,1749492648463,-884.66,0.00022465,4]
[365146302,1749492648473,-460.0,0.00022465,4]
[365146303,1749492648483,-552.55,0.00022465,4]
[365146304,1749492648495,-460.0,0.00022465,4]
[365146305,1749492648504,-460.0,0.00022465,4]
[365146306,1749492648515,-892.09,0.00022465,4]
[365146307,1749492648525,-736.81,0.00022465,4]
[365146308,1749492648535,-460.0,0.00022465,4]
[365146309,1749492648545,-270.0,0.00022465,4]
[365146310,1749492648555,-460.0,0.00022465,4]
[365146311,1749492648566,-1110.6,0.00022465,4]
[365146312,1749492648576,-460.0,0.00022465,4]
[365146313,1749492648586,-460.0,0.00022465,4]
[365146314,1749492648596,-279.15417083,0.00022465,4]
[365146315,1749492648607,-1359.1,0.00022465,4]
[365146316,1749492648617,-460.0,0.00022465,4]
[365146317,1749492648627,-709.82,0.00022465,4]
[365146318,1749492648636,-460.0,0.00022465,4]
[365146319,1749492648647,-460.0,0.00022465,4]
[365146320,1749492648656,-460.0,0.00022465,4]
[365146321,1749492648667,-460.0,0.00022465,4]
[365146322,1749492648676,-2201.86,0.00022465,4]
[365146323,1749492648686,-1774.99,0.00022465,4]
[365146324,1749492648696,-460.0,0.00022465,4]
[365146325,1749492648706,-2126.84,0.00022465,4]
[365146326,1749492648716,-479.45,0.00022465,4]
[365146327,1749492648726,-650.38,0.00022465,4]
[365146328,1749492648736,-527.64,0.00022465,4]
[365146329,1749492648746,-16120.96,0.00022465,4]
[365146330,1749492648756,-460.0,0.00022465,4]
[365146331,1749492648765,-794.98,0.00022465,4]
[365146332,1749492648775,-890.98,0.00022465,4]
[365146333,1749492648785,-2274.69,0.00022465,4]
[365146334,1749492648794,-340.0,0.00022465,4]
[365146335,1749492648804,-679.79310341,0.00022486,7]
[365146336,1749492648814,-504.77353075,0.00022521,2]
[365146337,1749492648824,-165.04079114,0.00022521,2]
[365146338,1749492648833,-679.79310341,0.00022659,7]
[365146339,1749492648843,-4603.657962,0.000227,2]
[365146340,1749492648854,-156.025299,0.000227,7]
[365146341,1749492648864,-164.048018,0.000227,7]
[365146342,1749492648876,-164.048018,0.000227,7]
[365146343,1749492648885,-228.910818,0.000227,7]
[365146344,1749492648895,-228.910818,0.000227,7]
[365146345,1749492648906,-2000.0,0.00022712,2]
[365146346,1749492648919,-2000.0,0.00022712,2]
[365146347,1749492648930,-2000.0,0.00022712,2]
[365146348,1749492648939,-2000.0,0.00022712,2]
[365146349,1749492648951,-2000.0,0.00022712,2]
[365146350,1749492648963,-2000.0,0.00022712,2]
[365146351,1749492648973,-2000.0,0.00022712,2]
[365146352,1749492648982,-2000.0,0.00022712,2]
[365146353,1749492648993,-2000.0,0.00022712,2]
[365146354,1749492649004,-1437.03958727,0.00022712,2]
[365146355,1749492649014,-151.0,0.00022712,7]
[365146356,1749492649024,-2665.42,0.00022729,3]
[365146357,1749492649033,-1332.7,0.00022729,3]
[365146358,1749492649129,-666.36,0.00022729,3]
[365146359,1749492649139,-333.18,0.00022729,3]
[365146360,1749492649150,-2417.75185589,0.0002273,3]
[365146361,1749492649160,-213.08899333,0.0002273,3]
[365146362,1749492649171,-179.463166,0.00022739,7]
[365146363,1749492649180,-179.463166,0.00022739,7]
[365146364,1749492649191,-156.025299,0.00022739,7]
[365146365,1749492649201,-156.025299,0.00022739,7]
[365146366,1749492649212,-481.96,0.00022739,4]
[365146367,1749492649222,-164.048018,0.00022739,7]
[365146368,1749492649231,-164.048018,0.00022739,7]
[365146369,1749492649241,-460.0,0.00022739,4]
[365146370,1749492649251,-460.0,0.00022739,4]
[365146371,1749492649262,-228.910818,0.00022739,7]
[365146372,1749492649272,-228.910818,0.00022739,7]
[365146373,1749492649281,-460.0,0.00022739,2]
[365146374,1749492649292,-460.0,0.00022739,4]
[365146375,1749492649302,-419.61450717,0.00022739,4]
[365146376,1749492649312,-280.0,0.00022739,4]
[365146377,1749492649324,-853.52,0.00022739,4]
[365146378,1749492649334,-460.0,0.00022739,4]
[365146379,1749492649343,-320.0,0.00022739,4]
[365146380,1749492649352,-1247.26,0.00022739,4]
[365146381,1749492649363,-460.0,0.00022739,4]
[365146382,1749492649373,-1636.16,0.00022739,4]
[365146383,1749492649384,-484.48,0.00022739,4]
[365146384,1749492649396,-617.94,0.00022739,4]
[365146385,1749492649406,-904.06,0.00022739,4]
[365146386,1749492649416,-460.0,0.00022739,4]
[365146387,1749492649426,-884.66,0.00022739,4]
[365146388,1749492649436,-460.0,0.00022739,4]
[365146389,1749492649445,-552.55,0.00022739,4]
[365146390,1749492649455,-460.0,0.00022739,4]
[365146391,1749492649465,-460.0,0.00022739,4]
[365146392,1749492649474,-892.09,0.00022739,4]
[365146393,1749492649483,-736.81,0.00022739,4]
[365146394,1749492649493,-460.0,0.00022739,4]
[365146395,1749492649503,-460.0,0.00022739,4]
[365146396,1749492649513,-1110.6,0.00022739,4]
[365146397,1749492649523,-434.09231252,0.00022739,4]
[365146398,1749492649532,-460.0,0.00022739,4]
[365146399,1749492649542,-1359.1,0.00022739,4]
[365146400,1749492649551,-460.0,0.00022739,4]
[365146401,1749492649561,-709.82,0.00022739,4]
[365146402,1749492649572,-595.71113709,0.00022739,4]
[365146403,1749492649581,-460.0,0.00022739,4]
[365146404,1749492649591,-460.0,0.00022739,4]
[365146405,1749492649601,-460.0,0.00022739,4]
[365146406,1749492649611,-2201.86,0.00022739,4]
[365146407,1749492649620,-1774.99,0.00022739,4]
[365146408,1749492649630,-460.0,0.00022739,4]
[365146409,1749492649640,-2126.84,0.00022739,4]
[365146410,1749492649650,-479.45,0.00022739,4]
[365146411,1749492649660,-650.38,0.00022739,4]
[365146412,1749492649669,-527.64,0.00022739,4]
[365146413,1749492649679,-16120.96,0.00022739,4]
[365146414,1749492649689,-460.0,0.00022739,4]
[365146415,1749492649699,-794.98,0.00022739,4]
[365146416,1749492649708,-890.98,0.00022739,4]
[365146417,1749492649718,-2274.69,0.00022739,4]
[365146418,1749492649727,-659.82429951,0.00022825,2]
[365146419,1749492649738,-679.79310341,0.00022831,8]
[365146420,1749492649747,-215.0738,0.00022856,2]
[365146421,1749492649756,-500.0,0.00022877,2]
[365146422,1749492649766,-600.0,0.00022877,2]
[365146423,1749492649775,-500.0,0.000229,2]
[365146424,1749492649785,-223.0841602,0.00022913,2]
[365146425,1749492649795,-500.0,0.00022914,2]
[365146426,1749492649804,-307.0,0.0002292,2]
[365146427,1749492649814,-500.0,0.00022921,2]
[365146428,1749492649823,-500.0,0.00022944,2]
[365146429,1749492649833,-500.0,0.00022956,2]
[365146430,1749492649843,-2096.69,0.00023,7]
[365146431,1749492649852,-13687.1984121,0.00023,7]
[365146432,1749492649862,-151.0,0.00023,7]
[365146433,1749492649872,-179.463166,0.00023,7]
[365146434,1749492649884,-179.463166,0.00023,7]
[365146435,1749492649893,-151.0,0.00023,7]
[365146436,1749492649903,-160.0,0.00023,3]
[365146437,1749492649913,-160.0,0.00023,3]
[365146438,1749492649924,-834.7738823,0.00023,3]
[365146439,1749492649934,-160.0,0.00023,3]
[365146440,1749492649943,-229.64266968,0.00023,3]
[365146441,1749492649955,-679.79310341,0.00023003,8]
[365146442,1749492649965,-3000.0,0.00023012,4]
[365146443,1749492649975,-156.025299,0.00023013,7]
[365146444,1749492649985,-156.025299,0.00023013,7]
[365146445,1749492649994,-481.96,0.00023013,4]
[365146446,1749492650005,-164.048018,0.00023013,7]
[365146447,1749492650015,-164.048018,0.00023013,7]
[365146448,1749492650025,-460.0,0.00023013,4]
[365146449,1749492650035,-460.0,0.00023013,4]
[365146450,1749492650045,-228.910818,0.00023013,7]
[365146451,1749492650054,-228.910818,0.00023013,7]
[365146452,1749492650064,-460.0,0.00023013,2]
[365146453,1749492650073,-460.0,0.00023013,4]
[365146454,1749492650083,-151.0,0.00023013,7]
[365146455,1749492650093,-853.52,0.00023013,4]
[365146456,1749492650102,-460.0,0.00023013,4]
[365146457,1749492650111,-1247.26,0.00023013,4]
[365146458,1749492650121,-254.51944795,0.00023013,4]
[365146459,1749492650130,-1636.16,0.00023013,4]
[365146460,1749492650140,-484.48,0.00023013,4]
[365146461,1749492650150,-617.94,0.00023013,4]
[365146462,1749492650160,-904.06,0.00023013,4]
[365146463,1749492650169,-460.0,0.00023013,4]
[365146464,1749492650179,-884.66,0.00023013,4]
[365146465,1749492650189,-460.0,0.00023013,4]
[365146466,1749492650199,-552.55,0.00023013,4]
[365146467,1749492650209,-460.0,0.00023013,4]
[365146468,1749492650219,-460.0,0.00023013,4]
[365146469,1749492650228,-892.09,0.00023013,4]
[365146470,1749492650238,-736.81,0.00023013,4]
[365146471,1749492650247,-460.0,0.00023013,4]
[365146472,1749492650257,-460.0,0.00023013,4]
[365146473,1749492650267,-1110.6,0.00023013,4]
[365146474,1749492650276,-460.0,0.00023013,4]
[365146475,1749492650286,-1359.1,0.00023013,4]
[365146476,1749492650296,-460.0,0.00023013,4]
[365146477,1749492650305,-709.82,0.00023013,4]
[365146478,1749492650315,-460.0,0.00023013,4]
[365146479,1749492650324,-460.0,0.00023013,4]
[365146480,1749492650334,-460.0,0.00023013,4]
[365146481,1749492650343,-2201.86,0.00023013,4]
[365146482,1749492650353,-1774.99,0.00023013,4]
[365146483,1749492650362,-460.0,0.00023013,4]
[365146484,1749492650373,-2126.84,0.00023013,4]
[365146485,1749492650383,-479.45,0.00023013,4]
[365146486,1749492650393,-650.38,0.00023013,4]
[365146487,1749492650403,-527.64,0.00023013,4]
[365146488,1749492650413,-16120.96,0.00023013,4]